bitfinex/quotes_BTCUSD_20250803
["timestamp","ask_amount","ask_price","bid_price","bid_amount"]
[1754235415402,2.99586238,113970.0,113960.0,0.07862275]
[1754235415646,2.96204207,113970.0,113960.0,0.08071275]
[1754235415859,2.95482843,113970.0,113960.0,0.08071275]
[1754235417007,2.95382843,113970.0,113960.0,0.08071275]
[1754235417218,2.95382843,113970.0,113960.0,0.08171275]
[1754235417861,2.95382843,113970.0,113960.0,0.08371275]
[1754235418335,2.9620324,113970.0,113960.0,0.08371275]
[1754235418783,2.94829497,113970.0,113960.0,0.08371275]
[1754235421897,2.96203175,113970.0,113960.0,0.08371275]
[1754235423909,2.95382778,113970.0,113960.0,0.08371275]
[1754235424136,2.96203159,113970.0,113960.0,0.08371275]
[1754235424569,2.96203126,113970.0,113960.0,0.08371275]
[1754235426500,2.94829448,113970.0,113960.0,0.08371275]
[1754235427604,2.96470047,113970.0,113960.0,0.08371275]
[1754235428252,2.94829448,113970.0,113960.0,0.08371275]
[1754235428469,2.96470092,113970.0,113960.0,0.08371275]
[1754235429144,2.97843786,113970.0,113960.0,0.08371275]
[1754235430675,3.6590061,113970.0,113960.0,0.08371275]
[1754235431104,2.97843786,113970.0,113960.0,0.08371275]
[1754235431317,3.6590061,113970.0,113960.0,0.08371275]
[1754235431535,2.97843786,113970.0,113960.0,0.08371275]
[1754235431747,3.6590061,113970.0,113960.0,0.08371275]
[1754235432761,3.9990061,113970.0,113960.0,0.08371275]
[1754235433961,4.0253961,113970.0,113960.0,0.08371275]
[1754235434179,3.9990061,113970.0,113960.0,0.08371275]
[1754235436492,3.31843786,113970.0,113960.0,0.08371275]
[1754235436692,3.9990061,113970.0,113960.0,0.08371275]
[1754235437286,3.16890092,113970.0,113960.0,0.08371275]
[1754235437498,0.36460992,113970.0,113960.0,0.76428099]
[1754235437719,0.36460992,113970.0,113960.0,0.90020099]
[1754235437925,0.34820348,113970.0,113960.0,0.98883383]
[1754235438337,0.34,113970.0,113960.0,0.98883383]
[1754235439027,0.13592,113980.0,113960.0,0.98883383]
[1754235439197,0.34,113970.0,113960.0,0.22978559]
[1754235439859,0.34,113970.0,113960.0,0.30826559]
[1754235440078,0.34,113970.0,113960.0,0.30726559]
[1754235440449,0.34,113970.0,113960.0,0.98783383]
[1754235440650,0.34,113970.0,113960.0,0.91199563]
[1754235440855,0.34,113970.0,113960.0,0.30726559]
[1754235441151,0.34,113970.0,113960.0,0.91199563]
[1754235441557,0.34,113970.0,113960.0,0.91299563]
[1754235442776,0.35373533,113970.0,113960.0,0.91299563]
[1754235447953,0.35373533,113970.0,113960.0,0.30826559]
[1754235448182,0.35373533,113970.0,113960.0,0.91299563]
[1754235452262,0.01373533,113970.0,113960.0,1.51772567]
[1754235452506,1.30054352,114020.0,113960.0,1.51772567]
[1754235452729,0.34,113990.0,113980.0,0.60473004]
[1754235452954,0.00821574,113990.0,113980.0,0.90447288]
[1754235453168,0.13584,114000.0,113980.0,0.90978288]
[1754235453380,0.34,113990.0,113980.0,0.22657284]
[1754235453593,0.34,113990.0,113980.0,0.83130288]
[1754235454031,0.34,113990.0,113980.0,0.90978288]
[1754235454257,0.34,113990.0,113980.0,0.30805284]
[1754235454488,2.804291,114000.0,113980.0,0.30805284]
[1754235454731,0.00821342,114000.0,113980.0,0.30805284]
[1754235455617,0.02194679,114000.0,113980.0,0.30905284]
[1754235456252,0.02194679,114000.0,113980.0,0.30605284]
[1754235456460,0.02194531,114000.0,113980.0,0.30605284]
[1754235456685,0.02294531,114000.0,113990.0,0.07527]
[1754235457301,0.34921194,114000.0,113990.0,0.07527]
[1754235457941,0.34821194,114000.0,113990.0,0.07527]
[1754235458102,0.34921194,114000.0,113990.0,0.07527]
[1754235458722,0.34921194,114000.0,113990.0,0.07848]
[1754235458927,0.34921194,114000.0,113990.0,0.07948]
[1754235460367,0.36294512,114000.0,113990.0,0.07948]
[1754235466101,0.36294512,114000.0,113990.0,0.08147]
[1754235469126,0.34921194,114000.0,113990.0,0.08147]
[1754235472271,0.36294509,114000.0,113990.0,0.08147]
[1754235473336,0.36294509,114000.0,113990.0,0.07899]
[1754235473891,0.01473315,114000.0,113990.0,0.07899]
[1754235476173,0.01473315,114000.0,113990.0,0.07903]
[1754235479092,0.35473315,114000.0,113990.0,0.07903]
[1754235479358,0.3711754,114000.0,113990.0,0.07903]
[1754235483236,0.5065354,114000.0,113990.0,0.07903]
[1754235483410,0.5065354,114000.0,113990.0,0.75919243]
[1754235483541,0.3711754,114000.0,113990.0,0.75919243]
[1754235484215,0.37119559,114000.0,113990.0,0.75919243]
[1754235485104,0.01646244,114000.0,113990.0,0.75919243]
[1754235485328,2.818024,114010.0,113990.0,0.75919243]
[1754235485545,0.15185951,114010.0,114000.0,0.68016243]
[1754235485775,0.01645951,114010.0,114000.0,0.68525243]
[1754235485982,0.0246883,114010.0,114000.0,0.75664243]
[1754235486196,0.0246883,114010.0,114000.0,0.89208243]
[1754235486621,0.0256883,114010.0,114000.0,0.89208243]
[1754235486830,0.0256883,114010.0,114000.0,0.21192]
[1754235487260,0.0246883,114010.0,114000.0,0.21192]
[1754235487463,0.0256883,114010.0,114000.0,0.21192]
[1754235487672,0.0246883,114010.0,114000.0,0.21192]
[1754235488049,0.3646883,114010.0,114000.0,0.21292]
[1754235488794,0.3656883,114010.0,114000.0,0.21292]
[1754235489438,0.3646883,114010.0,114000.0,0.21292]
[1754235489700,0.37842074,114010.0,114000.0,0.21292]
[1754235490352,0.37842074,114010.0,114000.0,0.21392]
[1754235490567,0.37842074,114010.0,114000.0,0.07848]
[1754235492771,0.37841562,114010.0,114000.0,0.07848]
[1754235493655,0.98283839,114010.0,114000.0,0.002]
[1754235493872,3.78712939,114010.0,114000.0,0.002]
[1754235494500,3.18270662,114010.0,114000.0,0.002]
[1754235494949,3.20908662,114010.0,114000.0,0.002]
[1754235498268,3.19535418,114010.0,114000.0,0.002]
[1754235498878,3.19535418,114010.0,114000.0,0.07604]
[1754235500811,3.20908712,114010.0,114000.0,0.07604]
[1754235501611,3.20908869,114010.0,114000.0,0.07604]
[1754235501827,0.02195818,114010.0,114000.0,1.29004554]
[1754235502097,0.36195818,114010.0,114000.0,0.68562277]
[1754235502528,0.36195818,114010.0,114000.0,0.77425561]
[1754235503073,0.01373294,114010.0,114000.0,0.77425561]
[1754235503278,0.02195796,114010.0,114000.0,0.77425561]
[1754235503492,0.35373294,114010.0,114000.0,0.77425561]
[1754235504160,0.01373294,114010.0,114000.0,0.77425561]
[1754235504991,0.01373294,114010.0,114000.0,1.37867838]
[1754235505224,0.03528561,114020.0,114000.0,1.37867838]
[1754235505434,0.13516,114030.0,114010.0,0.8304084]
[1754235505634,0.00821848,114030.0,114020.0,0.60649277]
[1754235505859,0.00821848,114030.0,114020.0,0.68362277]
[1754235506273,0.04469446,114030.0,114020.0,0.68362277]
[1754235506499,0.00821848,114030.0,114020.0,0.68362277]
[1754235506682,0.00821848,114030.0,114020.0,0.68262277]
[1754235506888,0.02194838,114030.0,114020.0,0.68362277]
[1754235507571,0.00821848,114030.0,114020.0,0.68362277]
[1754235508185,0.01021848,114030.0,114020.0,0.68362277]
[1754235508399,0.00821848,114030.0,114020.0,0.68362277]
[1754235508861,0.00821848,114030.0,114020.0,0.68562277]
[1754235509296,0.00826613,114030.0,114020.0,0.68762277]
[1754235509510,0.0385888,114030.0,114020.0,0.68762277]
[1754235509952,0.3785888,114030.0,114020.0,0.68762277]
[1754235514066,0.3785888,114030.0,114020.0,0.0832]
[1754235519983,0.0385888,114030.0,114020.0,0.0832]
[1754235520422,0.0385888,114030.0,114020.0,0.68762277]
[1754235523117,0.0385888,114030.0,114020.0,0.0832]
[1754235523354,0.05231878,114030.0,114020.0,0.0832]
[1754235524552,0.0441003,114030.0,114020.0,0.0832]
[1754235524791,0.05231112,114030.0,114020.0,0.0832]
[1754235529306,0.03858114,114030.0,114020.0,0.0832]
[1754235531464,0.05504062,114030.0,114020.0,0.0832]
[1754235532099,0.06877067,114030.0,114020.0,0.0832]
[1754235533157,0.05231119,114030.0,114020.0,0.0832]
[1754235533362,0.06877597,114030.0,114020.0,0.21824]
[1754235533986,0.99900779,114040.0,114020.0,0.21824]
[1754235534229,2.804291,114030.0,114020.0,0.21824]
[1754235534412,0.01373002,114030.0,114020.0,0.1442]
[1754235535089,0.01373002,114030.0,114020.0,0.2154]
[1754235535609,0.026373,114050.0,114020.0,0.90845561]
[1754235535829,2.804291,114040.0,114030.0,0.07441]
[1754235536041,2.804291,114040.0,114030.0,0.67883277]
[1754235536258,2.804291,114040.0,114030.0,0.68080277]
[1754235537310,2.804291,114040.0,114030.0,0.07638]
[1754235540216,2.804291,114040.0,114030.0,0.68080277]
[1754235540632,2.804291,114040.0,114030.0,0.76943561]
[1754235540891,0.04405836,114050.0,114030.0,0.76943561]
[1754235541114,0.0303298,114050.0,114040.0,0.83028782]
[1754235541340,0.0303298,114050.0,114040.0,0.90203561]
[1754235541802,0.0303298,114050.0,114040.0,0.29761284]
[1754235542029,0.0303298,114050.0,114040.0,0.90203561]
[1754235542476,0.0303298,114050.0,114040.0,0.90403561]
[1754235546327,0.03854297,114050.0,114040.0,0.90603561]
[1754235546579,0.0303298,114050.0,114040.0,0.90603561]
[1754235547066,0.0303298,114050.0,114040.0,0.30161284]
[1754235550311,0.63475257,114050.0,114040.0,0.29883284]
[1754235550768,0.0303298,114050.0,114040.0,0.29883284]
[1754235551215,0.00820841,114050.0,114040.0,0.30203284]
[1754235551445,2.804291,114050.0,114040.0,0.30203284]
[1754235552314,0.03801623,114050.0,114040.0,0.30203284]
[1754235554027,0.03801623,114050.0,114040.0,0.2102]
[1754235554768,0.03801623,114050.0,114040.0,0.2134]
[1754235555582,0.03801685,114050.0,114040.0,0.2134]
[1754235555792,0.03801685,114050.0,114040.0,0.21551]
[1754235556427,0.0517439,114050.0,114040.0,0.21551]
[1754235557061,0.04353505,114050.0,114040.0,0.21551]
[1754235557236,0.05174431,114050.0,114040.0,0.21551]
[1754235563226,0.03801726,114050.0,114040.0,0.21551]
[1754235572092,1.05225517,114070.0,114040.0,0.21551]
[1754235572369,2.804291,114060.0,114050.0,0.07297]
[1754235572548,2.8207572,114060.0,114050.0,0.07297]
[1754235573222,2.83448346,114060.0,114050.0,0.07297]
[1754235573452,2.83448346,114060.0,114050.0,0.07508]
[1754235575519,2.81801726,114060.0,114050.0,0.07508]
[1754235575754,2.83448332,114060.0,114050.0,0.07508]
[1754235576222,0.01646606,114060.0,114050.0,0.67950277]
[1754235576453,0.01646606,114060.0,114050.0,0.76813561]
[1754235576689,0.03656193,114070.0,114050.0,0.76813561]
[1754235576923,0.0530269,114070.0,114060.0,0.20793]
[1754235577159,0.0530269,114070.0,114060.0,0.21004]
[1754235577872,0.0540269,114070.0,114060.0,0.21004]
[1754235578565,0.0530269,114070.0,114060.0,0.21004]
[1754235579710,0.06675168,114070.0,114060.0,0.21004]
[1754235581302,0.05028671,114070.0,114060.0,0.21004]
[1754235583993,0.05028671,114070.0,114060.0,0.20473]
[1754235584187,2.804291,114060.0,114050.0,0.13496]
[1754235584393,3.41693915,114060.0,114050.0,0.13496]
[1754235584595,3.41693915,114060.0,114050.0,0.20563]
[1754235584817,2.81251638,114060.0,114050.0,0.20563]
[1754235585430,2.81251638,114060.0,114050.0,0.20763]
[1754235585637,2.81251638,114060.0,114050.0,0.20963]
[1754235586516,2.81251638,114060.0,114050.0,0.21267]
[1754235589165,2.81251638,114060.0,114050.0,0.07771]
[1754235589397,2.81251638,114060.0,114050.0,0.21263]
[1754235590136,2.81251638,114060.0,114050.0,0.20959]
[1754235590413,2.81251638,114060.0,114050.0,0.21476]
[1754235592403,2.81251638,114060.0,114050.0,0.81918277]
[1754235592609,0.00822538,114060.0,114050.0,0.90781561]
[1754235598189,0.03656193,114070.0,114050.0,0.90781561]
[1754235598436,0.04478671,114070.0,114060.0,0.60442277]
[1754235598648,0.04478671,114070.0,114060.0,0.60959277]
[1754235598889,0.04478671,114070.0,114060.0,0.68026277]
[1754235599143,0.04478671,114070.0,114060.0,0.76889561]
[1754235599380,0.00047655,114070.0,114060.0,0.76889561]
[1754235599814,0.00047655,114070.0,114060.0,0.16447284]
[1754235600252,0.00047655,114070.0,114060.0,0.77108743]
[1754235600476,0.00047655,114070.0,114060.0,0.76889561]
[1754235601622,0.00147655,114070.0,114060.0,0.76889561]
[1754235602083,0.00047655,114070.0,114060.0,0.76889561]
[1754235602521,0.00047655,114070.0,114060.0,0.77089561]
[1754235603441,0.00047655,114070.0,114060.0,0.16647284]
[1754235603655,0.00047655,114070.0,114060.0,0.77308743]
[1754235603898,0.00047655,114070.0,114060.0,0.76889561]
[1754235604109,0.00047655,114070.0,114060.0,0.77289561]
[1754235604351,0.00047655,114070.0,114060.0,0.91113561]
[1754235604802,0.00047655,114070.0,114060.0,0.91313561]
[1754235605104,0.00047655,114070.0,114060.0,0.91113561]
[1754235605711,0.00047655,114070.0,114060.0,0.91413561]
[1754235606145,0.00047655,114070.0,114060.0,0.30971284]
[1754235606571,0.00047655,114070.0,114060.0,0.30963284]
[1754235606781,0.00047655,114070.0,114060.0,0.17147284]
[1754235607029,0.00047655,114070.0,114060.0,0.30963284]
[1754235607233,0.00047655,114070.0,114060.0,0.91405561]
[1754235607444,0.00047655,114070.0,114060.0,0.90461561]
[1754235607657,0.00245655,114070.0,114060.0,0.16203284]
[1754235607872,0.00245655,114070.0,114060.0,0.29742284]
[1754235608082,0.00245655,114070.0,114060.0,0.30142284]
[1754235609205,0.00245655,114070.0,114060.0,0.30355284]
[1754235609427,0.00245655,114070.0,114060.0,0.30659284]
[1754235612535,2.804291,114090.0,114060.0,0.30659284]
[1754235612762,2.81263886,114090.0,114070.0,0.06847]
[1754235612966,2.804291,114080.0,114070.0,0.06847]
[1754235613637,2.804291,114080.0,114070.0,0.07155]
[1754235614294,2.804291,114080.0,114060.0,0.29830284]
[1754235614517,2.804291,114080.0,114070.0,0.13804]
[1754235614778,0.61262805,114080.0,114070.0,0.13804]
[1754235614986,3.44670124,114080.0,114070.0,0.13904]
[1754235615202,3.44670124,114080.0,114070.0,0.13804]
[1754235615416,2.84227847,114080.0,114070.0,0.13804]
[1754235616078,2.84227847,114080.0,114070.0,0.13904]
[1754235617393,2.84227847,114080.0,114070.0,0.13804]
[1754235618270,3.18227847,114080.0,114070.0,0.13804]
[1754235619809,3.18327847,114080.0,114070.0,0.13804]
[1754235620961,3.15349628,114080.0,114070.0,0.21157]
[1754235621411,3.15349628,114080.0,114070.0,0.20959]
[1754235625944,3.13671128,114080.0,114070.0,0.21157]
[1754235632162,3.13671128,114080.0,114070.0,0.20959]
[1754235637967,3.14493895,114080.0,114070.0,0.20959]
[1754235639663,3.74936172,114080.0,114070.0,0.13804]
[1754235640605,3.74936172,114080.0,114070.0,0.20651]
[1754235640823,3.14493895,114080.0,114070.0,0.20651]
[1754235642793,3.14493895,114080.0,114070.0,0.20955]
[1754235643454,3.14493895,114080.0,114070.0,0.21165]
[1754235645214,3.14493895,114080.0,114070.0,0.20955]
[1754235646083,3.74936172,114080.0,114070.0,0.13804]
[1754235646296,3.28181895,114080.0,114070.0,0.13804]
[1754235646505,3.88624172,114080.0,114070.0,0.13804]
[1754235646720,3.88624172,114080.0,114060.0,0.07001]
[1754235646907,2.795712,114070.0,114060.0,0.20697]
[1754235647114,2.80393967,114070.0,114060.0,0.20907]
[1754235647570,2.81766357,114070.0,114060.0,0.20907]
[1754235648549,2.81766357,114070.0,114060.0,0.21007]
[1754235649765,2.81766357,114070.0,114060.0,0.21107]
[1754235657028,2.81766357,114070.0,114060.0,0.81549277]
[1754235658676,2.61892657,114070.0,114060.0,0.81549277]
[1754235658827,2.61892657,114070.0,114060.0,0.21107]
[1754235659050,2.61892657,114070.0,114060.0,0.81549277]
[1754235659730,0.02195157,114070.0,114060.0,0.81549277]
[1754235660862,0.02195157,114070.0,114060.0,0.90412561]
[1754235661078,0.02195678,114070.0,114060.0,0.90412561]
[1754235662396,0.00823288,114070.0,114060.0,0.90412561]
[1754235669002,0.0082296,114070.0,114060.0,0.90412561]
[1754235671694,0.0137232,114080.0,114060.0,0.90412561]
[1754235671904,0.02195204,114080.0,114070.0,0.60442277]
[1754235672109,0.02195204,114080.0,114070.0,0.67602277]
[1754235672748,0.02195204,114080.0,114070.0,0.76465561]
[1754235672974,0.00822884,114080.0,114070.0,0.76465561]
[1754235673231,0.00822884,114080.0,114070.0,0.76381561]
[1754235673478,0.0350606,114090.0,114070.0,0.76465561]
[1754235673680,0.01372203,114100.0,114080.0,0.90110705]
[1754235673907,0.01372203,114100.0,114090.0,0.67602277]
[1754235674376,0.01372203,114100.0,114090.0,0.81222277]
[1754235674851,0.01372203,114100.0,114090.0,0.2068]
[1754235675964,0.01472203,114100.0,114090.0,0.2068]
[1754235676186,0.01572203,114100.0,114090.0,0.2068]
[1754235676871,0.0522663,114100.0,114090.0,0.2068]
[1754235680703,0.0522663,114100.0,114090.0,0.06642]
[1754235680928,3.25366407,114100.0,114090.0,0.13612]
[1754235681136,2.596975,114090.0,114080.0,0.13626288]
[1754235681344,2.596975,114090.0,114080.0,0.20268288]
[1754235681547,2.596975,114090.0,114080.0,0.20588288]
[1754235682623,2.596975,114090.0,114080.0,0.20688288]
[1754235683042,2.596975,114090.0,114080.0,0.20886288]
[1754235685840,0.00821577,114090.0,114080.0,0.20886288]
[1754235691507,2.596975,114090.0,114080.0,0.20886288]
[1754235697436,2.596975,114090.0,114080.0,0.81328565]
[1754235697667,0.37558882,114100.0,114080.0,0.90191849]
[1754235697887,0.37558882,114100.0,114090.0,0.06962]
[1754235698107,0.37558882,114100.0,114090.0,0.0716]
[1754235699217,0.37658882,114100.0,114090.0,0.0716]
[1754235700073,0.37758882,114100.0,114090.0,0.0716]
[1754235700735,0.37658882,114100.0,114090.0,0.0716]
[1754235700952,0.37758882,114100.0,114090.0,0.0716]
[1754235701484,0.37758882,114100.0,114090.0,0.67602277]
[1754235701696,0.37758882,114100.0,114090.0,0.0716]
[1754235703533,0.38581872,114100.0,114090.0,0.0716]
[1754235704631,0.38581872,114100.0,114090.0,0.67602277]
[1754235704904,0.38581872,114100.0,114090.0,0.76465561]
[1754235705584,0.04581872,114100.0,114090.0,0.76465561]
[1754235705808,0.0102299,114100.0,114090.0,0.76465561]
[1754235706500,0.0092276,114100.0,114090.0,0.76465561]
[1754235706716,0.0082276,114100.0,114090.0,0.76465561]
[1754235706931,0.0082276,114100.0,114090.0,0.76665561]
[1754235707376,0.0082276,114100.0,114090.0,0.76865561]
[1754235711563,0.0082276,114100.0,114090.0,0.79500761]
[1754235712389,0.0004,114120.0,114090.0,0.79500761]
[1754235712625,0.0086191,114120.0,114110.0,0.60442277]
[1754235712837,0.0086191,114120.0,114110.0,0.69517561]
[1754235713049,0.0086191,114120.0,114110.0,0.77165561]
[1754235713477,0.0096191,114120.0,114110.0,0.77165561]
[1754235713709,0.0106191,114120.0,114110.0,0.77165561]
[1754235713908,0.0096191,114120.0,114110.0,0.77165561]
[1754235714122,0.0086191,114120.0,114110.0,0.77165561]
[1754235714333,0.0096191,114120.0,114110.0,0.77165561]
[1754235714539,0.0106191,114120.0,114110.0,0.77165561]
[1754235714953,0.0096191,114120.0,114110.0,0.77165561]
[1754235715176,0.0096191,114120.0,114110.0,0.78227561]
[1754235715392,0.0014,114120.0,114110.0,0.78227561]
[1754235715595,0.0004,114120.0,114110.0,0.78227561]
[1754235715798,0.0004,114120.0,114110.0,1.38669838]
[1754235716017,0.0004,114120.0,114110.0,0.78427561]
[1754235716241,0.0004,114120.0,114110.0,0.78227561]
[1754235716475,0.0004,114120.0,114110.0,0.78427561]
[1754235716692,0.0004,114120.0,114110.0,0.78827561]
[1754235716921,0.0004,114120.0,114110.0,0.78627561]
[1754235717403,0.0004,114120.0,114110.0,0.78927561]
[1754235718017,0.0004,114120.0,114110.0,1.39369838]
[1754235719370,0.0004,114120.0,114110.0,0.78927561]
[1754235719585,0.0004,114120.0,114110.0,0.18485284]
[1754235719806,0.0004,114120.0,114110.0,0.78927561]
[1754235722034,0.0004,114120.0,114110.0,0.18485284]
[1754235722268,0.0004,114120.0,114110.0,0.78927561]
[1754235722995,0.0004,114120.0,114110.0,1.39369838]
[1754235723210,0.0004,114120.0,114110.0,1.66339838]
[1754235725046,0.0004,114120.0,114110.0,1.79943838]
[1754235727848,0.0004,114120.0,114110.0,1.19501561]
[1754235730670,0.34,114150.0,114130.0,0.60442277]
[1754235730896,0.34818563,114150.0,114140.0,0.22447284]
[1754235731171,0.34818563,114150.0,114140.0,0.13584]
[1754235731943,0.34832854,114150.0,114140.0,0.13584]
[1754235732146,0.38314349,114150.0,114140.0,0.13584]
[1754235732348,0.38414349,114150.0,114140.0,0.13584]
[1754235732728,0.38314349,114150.0,114140.0,0.13584]
[1754235732940,0.98756626,114150.0,114130.0,0.08863284]
[1754235733125,2.98011849,114150.0,114140.0,0.13584]
[1754235733540,2.98111849,114150.0,114140.0,0.13584]
[1754235734153,2.99483409,114150.0,114140.0,0.13584]
[1754235738083,2.99583409,114150.0,114140.0,0.13584]
[1754235738287,2.99483409,114150.0,114140.0,0.13584]
[1754235738504,2.99583409,114150.0,114140.0,0.13584]
[1754235742234,2.99583409,114150.0,114140.0,0.90532561]
[1754235742448,3.01477259,114150.0,114140.0,0.90532561]
[1754235742662,0.39885909,114150.0,114140.0,0.90532561]
[1754235743312,0.41780463,114150.0,114140.0,0.90532561]
[1754235743746,0.41783375,114150.0,114140.0,0.90532561]
[1754235743970,0.05888821,114150.0,114140.0,0.90532561]
[1754235744468,0.07783823,114150.0,114140.0,0.90532561]
[1754235744903,0.07783823,114150.0,114140.0,0.30090284]
[1754235747380,0.41533328,114150.0,114140.0,0.29874284]
[1754235749547,0.07534329,114150.0,114140.0,0.30090284]
[1754235752382,0.05889822,114150.0,114140.0,0.30090284]
[1754235758609,0.05889822,114150.0,114140.0,0.90532561]
[1754235761494,0.01036862,114150.0,114140.0,0.30090284]
[1754235761699,0.01036862,114150.0,114140.0,1.28885267]
[1754235761915,0.01036862,114150.0,114140.0,0.94885267]
[1754235762127,0.01036862,114150.0,114140.0,1.28885267]
[1754235762365,0.01036862,114150.0,114140.0,1.30276667]
[1754235762579,0.00214291,114150.0,114140.0,1.30276667]
[1754235762825,0.00114291,114150.0,114140.0,0.65481684]
[1754235763017,0.00114291,114150.0,114140.0,1.25923961]
[1754235763228,0.00114291,114150.0,114140.0,0.92387961]
[1754235763903,0.00014291,114150.0,114140.0,0.92487961]
[1754235767075,0.00014291,114150.0,114140.0,0.32045684]
[1754235767297,0.00014291,114150.0,114140.0,0.92487961]
[1754235777233,0.00014291,114150.0,114140.0,0.78439961]
[1754235777449,0.00014291,114150.0,114140.0,0.92431961]
[1754235782257,0.00014291,114150.0,114140.0,0.78439961]
[1754235782417,0.00014291,114150.0,114140.0,0.92403961]
[1754235783067,0.00014291,114150.0,114140.0,0.78439961]
[1754235783232,0.00014291,114150.0,114140.0,0.92399961]
[1754235783827,0.80095061,114190.0,114140.0,0.92399961]
[1754235784200,2.596975,114180.0,114160.0,0.60442277]
[1754235784319,2.60517602,114180.0,114170.0,0.13952]
[1754235784521,0.00820102,114180.0,114170.0,0.13952]
[1754235784723,2.596975,114180.0,114170.0,0.74394277]
[1754235785002,2.596975,114180.0,114170.0,0.30125284]
[1754235785003,0.00820102,114180.0,114170.0,0.30125284]
[1754235785189,0.05035243,114190.0,114170.0,0.30125284]
[1754235785190,0.05855345,114190.0,114170.0,0.30125284]
[1754235785341,0.003,114180.0,114170.0,0.29804284]
[1754235785553,0.01120317,114180.0,114170.0,0.29804284]
[1754235786630,0.01420317,114180.0,114170.0,0.29804284]
[1754235786991,0.01420317,114180.0,114170.0,0.22815284]
[1754235787390,0.01420317,114180.0,114160.0,0.0731]
[1754235787573,0.61862594,114180.0,114170.0,0.13972]
[1754235787780,0.63503889,114180.0,114170.0,0.13972]
[1754235787986,0.63503889,114180.0,114160.0,0.15852284]
[1754235788242,0.02761612,114180.0,114170.0,0.13964]
[1754235788389,0.02461612,114180.0,114170.0,0.13964]
[1754235788695,0.02761612,114180.0,114170.0,0.13964]
[1754235789324,0.02461612,114180.0,114170.0,0.13964]
[1754235789529,0.02761612,114180.0,114170.0,0.13964]
[1754235789732,0.03061612,114180.0,114170.0,0.13964]
[1754235789934,0.03061612,114180.0,114160.0,0.16173284]
[1754235790151,0.03061612,114180.0,114170.0,0.13964]
[1754235790775,0.03061612,114180.0,114170.0,0.20923]
[1754235791186,0.02761612,114180.0,114170.0,0.20923]
[1754235791620,0.03061612,114180.0,114170.0,0.20923]
[1754235791979,0.02761612,114180.0,114170.0,0.21229]
[1754235792424,0.03061612,114180.0,114170.0,0.21229]
[1754235793073,0.03061612,114180.0,114170.0,0.21426]
[1754235793720,0.03061612,114180.0,114170.0,0.90731561]
[1754235793938,0.03061612,114180.0,114170.0,0.30289284]
[1754235798063,0.03067285,114180.0,114170.0,0.30289284]
[1754235798907,0.03067285,114180.0,114170.0,0.30096284]
[1754235801082,0.03067285,114180.0,114170.0,0.30140284]
[1754235801581,0.03067285,114180.0,114170.0,0.20971]
[1754235801814,0.03067285,114180.0,114170.0,0.21277]
[1754235802066,0.03067285,114180.0,114170.0,0.07269]
[1754235802284,0.03067285,114180.0,114170.0,0.21277]
[1754235803435,0.03067285,114180.0,114170.0,0.07269]
[1754235803664,0.03067285,114180.0,114170.0,0.21277]
[1754235803943,0.03067255,114180.0,114170.0,0.07269]
[1754235804137,0.03067255,114180.0,114170.0,0.21273]
[1754235805086,0.03067255,114180.0,114170.0,0.20967]
[1754235805314,3.56959032,114180.0,114170.0,0.14008]
[1754235806246,3.56959032,114180.0,114170.0,4e-05]
[1754235806475,3.56959032,114180.0,114170.0,0.14004]
[1754235806689,3.56959032,114180.0,114170.0,0.20963]
[1754235807147,3.56959032,114180.0,114170.0,0.14004]
[1754235808424,3.56959032,114180.0,114170.0,0.20963]
[1754235810625,3.56959032,114180.0,114170.0,4e-05]
[1754235810837,3.56959032,114180.0,114170.0,0.13976]
[1754235811485,3.56959032,114180.0,114170.0,0.20935]
[1754235813122,3.56959032,114180.0,114170.0,0.1396]
[1754235813811,3.56959032,114180.0,114170.0,0.20919]
[1754235814997,3.56959032,114180.0,114170.0,0.21225]
[1754235815192,2.96516755,114180.0,114170.0,0.21225]
[1754235815400,2.96516755,114180.0,114170.0,0.2141]
[1754235817709,2.7193589,114180.0,114170.0,0.2141]
[1754235817849,2.596975,114180.0,114170.0,0.2141]
[1754235819088,2.61068627,114180.0,114170.0,0.2141]
[1754235824678,3.28874827,114180.0,114170.0,0.2141]
[1754235826399,3.62874827,114180.0,114170.0,0.2141]
[1754235827060,2.75731027,114180.0,114170.0,0.2141]
[1754235827492,3.43537227,114180.0,114170.0,0.2141]
[1754235828098,2.75731027,114180.0,114170.0,0.752722]
[1754235828298,2.75731027,114180.0,114170.0,0.891682]
[1754235828512,2.75731027,114180.0,114170.0,0.21362]
[1754235829126,2.743599,114180.0,114170.0,0.21362]
[1754235829530,3.421661,114180.0,114170.0,0.21362]
[1754235829735,3.44633514,114180.0,114170.0,0.21362]
[1754235830136,3.4463353,114180.0,114170.0,0.21362]
[1754235830347,2.7682733,114180.0,114170.0,0.21362]
[1754235831450,3.4463353,114180.0,114170.0,0.21362]
[1754235831856,2.7682733,114180.0,114170.0,0.21362]
[1754235832991,2.76827389,114180.0,114170.0,0.21362]
[1754235840449,3.44633589,114180.0,114170.0,0.21362]
[1754235841052,3.43811043,114180.0,114170.0,0.21362]
[1754235841291,3.44633623,114180.0,114170.0,0.21362]
[1754235841909,3.44633623,114180.0,114170.0,4e-05]
[1754235842097,3.44633623,114180.0,114170.0,0.20984]
[1754235843037,3.44633623,114180.0,114170.0,0.21292]
[1754235845376,2.76827423,114180.0,114170.0,0.21493]
[1754235845585,3.44633623,114180.0,114170.0,0.21493]
[1754235845797,3.44633937,114180.0,114170.0,0.21292]
[1754235846463,3.44633937,114180.0,114170.0,0.20984]
[1754235846899,2.76827737,114180.0,114170.0,0.13844]
[1754235847084,3.44633937,114180.0,114170.0,0.13844]
[1754235847557,4.26276137,114180.0,114170.0,4e-05]
[1754235848824,4.28870464,114180.0,114170.0,4e-05]
[1754235851972,4.30241746,114180.0,114170.0,4e-05]
[1754235853621,2.94629346,114180.0,114170.0,4e-05]
[1754235853836,4.30241746,114180.0,114170.0,4e-05]
[1754235854032,4.39125502,114180.0,114170.0,4e-05]
[1754235854864,4.40870404,114180.0,114170.0,4e-05]
[1754235855835,4.39499122,114180.0,114170.0,4e-05]
[1754235856191,4.41392017,114180.0,114170.0,4e-05]
[1754235856403,4.39499122,114180.0,114170.0,4e-05]
[1754235856583,4.41391708,114180.0,114170.0,4e-05]
[1754235856783,3.6608091,114180.0,114170.0,4e-05]
[1754235857193,3.64188324,114180.0,114170.0,4e-05]
[1754235858289,3.64185779,114180.0,114170.0,4e-05]
[1754235858446,3.66820379,114180.0,114170.0,4e-05]
[1754235858984,3.68191707,114180.0,114170.0,4e-05]
[1754235861859,3.59307951,114180.0,114170.0,4e-05]
[1754235864215,3.59307951,114180.0,114170.0,0.06944]